Cogmind - Beta 14 @@@ ROGUE MODE // 2024.11.18 @ 20:29:45 Player: Fangrelle Result: Destroyed by H1-C4C(R) with Subdweller Beam Cannon Performance ------------- Evolutions (0) 0 Regions Visited (3) 600 Robots Destroyed (16) 80 Value Destroyed (260) 260 Prototype IDs (1) 20 Alien Tech Used (0) 0 Bonus (160) 160 TOTAL SCORE: 1120 Bonus ------- Follower Combat Kills 160 Cogmind --------- Core Integrity 0/250 Matter 231/300 Energy 100/100 System Corruption 0% Temperature Cool (9) Movement Rolling (80) Location -10/Subcaves Parts ------- > --- POWER (1) -------- (None) > --- PROPULSION (2) --- Wheel > --- UTILITY (2) ------ Small Storage Unit Subdweller Optics > --- WEAPON (2) ------- (None) > --- INVENTORY (8) ---- Light Treads Aluminum Leg Aluminum Leg Peak State ------------ > --- POWER ------------ Ion Engine > --- PROPULSION ------- Aluminum Leg Aluminum Leg > --- UTILITY ---------- Small Storage Unit Experimental Sensor Array > --- WEAPON ----------- EM Pulse Gun Light Assault Rifle > --- INVENTORY -------- Light Ion Engine Light Treads Light Treads Wheel Compact Wheel Flight Unit Assault Rifle Light Assault Rifle [Rating: 15] Favorites ----------- Power Ion Engine Engine Ion Engine Propulsion Light Treads Treads Light Treads Leg Aluminum Leg Wheel Subdweller Monowheel Utility Small Storage Unit Device Experimental Sensor Array Storage Small Storage Unit Weapon Light Assault Rifle Energy Gun EM Pulse Gun Ballistic Gun Light Assault Rifle Build | -11 -10 -10 -10 ------- Run | Yrd Mat Min Sub Slots Evolved . | . . . . Power . | . . . . Propulsion . | . . . . Utility . | . . . . Weapon . | . . . . Parts Attached 13 | . . 4 9 Power 2 | . . . 2 Engine 2 | . . . 2 Core . | . . . . Reactor . | . . . . Propulsion 5 | . . 2 3 Treads 2 | . . 2 . Leg . | . . . . Wheel 3 | . . . 3 Hover . | . . . . Flight . | . . . . Utility 2 | . . 1 1 Device 2 | . . 1 1 Storage . | . . . . Processor . | . . . . Hackware . | . . . . Protection . | . . . . Artifact . | . . . . Weapon 4 | . . 1 3 Energy Gun . | . . . . Energy Cannon . | . . . . Ballistic Gun 4 | . . 1 3 Ballistic Cannon . | . . . . Launcher . | . . . . Special Weapon . | . . . . Impact Weapon . | . . . . Slashing Weapon . | . . . . Piercing Weapon . | . . . . Special Melee Weapon . | . . . . Unidentified Prototypes 1 | . . 1 . Parts Lost 12 | . . 1 11 Power 3 | . . . 3 Propulsion 3 | . . . 3 Utility 1 | . . . 1 Weapon 5 | . . 1 4 Highest Loss Streak 6 | . . 1 6 To Critical Strikes . | . . . . Average Slot Usage (%) 95 | . 85 95 93 Engine 13 | . 14 14 13 Treads 23 | . . 25 18 Leg 2 | . 28 2 . Wheel 2 | . . . 8 Device 12 | . . 13 11 Storage 14 | . 14 14 14 Energy Gun 4 | . 14 6 . Ballistic Gun 20 | . 14 18 26 Peak Build Rating 15 | . 6 15 15 Average Rating 13 | . 6 14 10 On Entrance 8 | 6 6 6 15 Naked Turns . | . . . . Heaviest Build 15 | 13 13 14 15 Greatest Support 40 | 20 20 40 40 Greatest Overweight (x) 1 | . . . 1 Average Overweight (x) . | . . . . Largest Inventory Capacity 8 | . 8 8 8 Average Capacity 8 | . 8 8 8 Most Carried 8 | . 6 8 8 Average Carried 7 | . 6 7 6 Final Capacity 8 | 8 8 8 8 Final Carried 7 | 6 6 7 3 Class Distribution -------------------- 96% | Mutant 3% | Scavenger-Mutant Dominant Class ---------------- Mutant | -10/Materials Mutant | -10/Mines Mutant | -10/Subcaves Resources | -11 -10 -10 -10 ----------- Run | Yrd Mat Min Sub Matter Collected 382 | 200 . 57 125 Remotely . | . . . . Salvage Created 321 | . . 125 196 Parts 23 | . . 13 10 Haulers Intercepted . | . . . . Recyclers Shooed . | . . . . Parts Field Recycled . | . . . . Retrieved Matter . | . . . . Parts Self-Destructed 5 | . . . 5 Prevented . | . . . . Kills | -11 -10 -10 -10 ------- Run | Yrd Mat Min Sub Combat Hostiles Destroyed 14 | . . 8 6 Guns 11 | . . 5 6 AOE 3 | . . 3 . Classes Destroyed 3 | . . 1 2 Turret 2 | . . . 2 Swarmer 12 | . . 8 4 Subdweller 2 | . . . 2 Best Kill Streak 3 | . . 3 2 Combat Bots Only 3 | . . 3 2 Max Kills in Single Turn 2 | . . 2 1 Gunslinging . | . . . . Exploded 2 | . . 2 . Melee . | . . . . Uniques/NPCs Destroyed . | . . . . Combat | -11 -10 -10 -10 -------- Run | Yrd Mat Min Sub Hostile Shots Fired 177 | . . 40 137 Missed 62 | . . 11 51 Damage Taken 1314 | . . 244 1070 Core 259 | . . 19 240 Absorbed by Shields . | . . . . Core Remaining (%) 100 | 100 . . . Volleys Fired 76 | . . 21 55 Largest 2 | . . 2 2 Hottest 60 | . . 60 40 Shots Fired 133 | . . 38 95 Gun 133 | . . 38 95 Cannon . | . . . . Launcher . | . . . . Special . | . . . . Kinetic 116 | . . 21 95 Thermal . | . . . . Explosive . | . . . . Electromagnetic 17 | . . 17 . Robot Hit Streak 9 | . . 5 9 Robot Miss Streak 3 | . . 3 2 Penetration Max . | . . . . Secondary Targets 2 | . . 1 1 Max Gunslinging Chain 1 | . . 1 1 Shots Hit Robots 87 | . . 20 67 Core Hits 32 | . . 10 22 Critical Kills . | . . . . Critical Parts Destroyed . | . . . . Critical Strikes . | . . . . Melee Attacks . | . . . . Impact . | . . . . Slashing . | . . . . Piercing . | . . . . Sneak Attacks . | . . . . Combat Hostiles . | . . . . Follow-up Attacks . | . . . . Damage Inflicted 1000 | . . 344 656 Guns 851 | . . 195 656 Cannons . | . . . . Explosions 146 | . . 146 . Melee . | . . . . Ramming 3 | . . 3 . Kinetic 754 | . . 98 656 Thermal 146 | . . 146 . Explosive . | . . . . Electromagnetic 97 | . . 97 . Impact . | . . . . Slashing . | . . . . Piercing . | . . . . Highest Corruption . | . . . . Average Corruption . | . . . . Corruption Purged . | . . . . Corruption Blocked . | . . . . Overload Shots . | . . . . Overflow Damage . | . . . . Projectiles . | . . . . Explosions . | . . . . Melee . | . . . . Knockbacks . | . . . . Impact . | . . . . Kinetic . | . . . . Secondary . | . . . . Self-Inflicted Damage . | . . . . Shots . | . . . . Rammed . | . . . . Targets Rammed 1 | . . 1 . Kicked 1 | . . 1 . Crushed . | . . . . Highest Temperature 216 | . . 40 216 Average Temperature 36 | . . 19 121 Received Heat Transfer 745 | . . 18 727 Siege Activations . | . . . . Robots Corrupted . | . . . . Combat Hostiles . | . . . . Parts Fried . | . . . . Impact Corruptions . | . . . . Robots Melted . | . . . . Combat Hostiles . | . . . . Parts Melted 1 | . . . 1 Heat Transferred 150 | . . 150 . Parts Sabotaged . | . . . . Parts Stolen . | . . . . Parts Stripped . | . . . . Power Chain Reactions 2 | . . 2 . Alert | -11 -10 -10 -10 ------- Run | Yrd Mat Min Sub Peak Influence 184 | . . 184 . Initial . | . . . . Average 64 | . . 66 . Maximum Alert Level . | . . . . Low Security (%) 100 | . 100 100 . Level 1 . | . . . . Level 2 . | . . . . Level 3 . | . . . . Level 4 . | . . . . Level 5 . | . . . . High Security . | . . . . Max Security . | . . . . Squads Dispatched . | . . . . Investigation . | . . . . Extermination . | . . . . Reinforcement . | . . . . Assault . | . . . . Garrison . | . . . . Intercept . | . . . . Searches Triggered . | . . . . Construction Impeded . | . . . . Haulers Reinforced . | . . . . Active Scanning Responses . | . . . . Cargo Convoy Interrupts . | . . . . Stealth | -11 -10 -10 -10 --------- Run | Yrd Mat Min Sub Distress Signals . | . . . . Communications Jammed . | . . . . Distress Signals . | . . . . Times Spotted 24 | . . 12 12 Peak Tracking Total 4 | . . 3 4 Tactical Retreats 5 | . . 1 4 Traps | -11 -10 -10 -10 ------- Run | Yrd Mat Min Sub Traps Triggered . | . . . . Indirectly . | . . . . Trap Hack Attempts . | . . . . Triggered . | . . . . Disarmed . | . . . . Reprogrammed . | . . . . Reused . | . . . . Traps Extracted . | . . . . Installed . | . . . . Triggered . | . . . . Machines | -11 -10 -10 -10 ---------- Run | Yrd Mat Min Sub Machines Disabled . | . . . . Max in Single Turn . | . . . . Machines Repaired . | . . . . Machines Dismantled . | . . . . Machines Sabotaged . | . . . . Overloaded Fab Kills . | . . . . Hacking | -11 -10 -10 -10 --------- Run | Yrd Mat Min Sub Machines Accessed 1 | . . . 1 Terminals . | . . . . Fabricators . | . . . . Repair Stations . | . . . . Recycling Units . | . . . . Scanalyzers . | . . . . Garrison Access . | . . . . Total Hacks 4 | . . . 4 Successful 4 | . . . 4 Failed . | . . . . Catastrophic . | . . . . Database Lockouts . | . . . . Manual . | . . . . Terminals . | . . . . Fabricators . | . . . . Repair Stations . | . . . . Recycling Units . | . . . . Scanalyzers . | . . . . Garrison Access . | . . . . Terminal Hacks 4 | . . . 4 Record 4 | . . . 4 Fabricator Hacks . | . . . . Repair Station Hacks . | . . . . Recycling Unit Hacks . | . . . . Scanalyzer . | . . . . Garrison Access Hacks . | . . . . Unauthorized Hacks . | . . . . Terminals . | . . . . Fabricators . | . . . . Repair Stations . | . . . . Recycling Units . | . . . . Scanalyzers . | . . . . Garrison Access . | . . . . Data Cores Recovered . | . . . . Used . | . . . . Hacking Detections . | . . . . Full Trace Events . | . . . . Feedback Events . | . . . . Feedback Blocked . | . . . . Robot Schematics Acquired . | . . . . Robots Built . | . . . . Authchips . | . . . . Time . | . . . . Total Robot Build Rating . | . . . . Part Schematics Acquired . | . . . . Parts Built . | . . . . Authchips . | . . . . Time . | . . . . Total Part Build Rating . | . . . . Parts Repaired . | . . . . Time . | . . . . Parts Recycled . | . . . . Recycled Matter . | . . . . Retrieved Matter . | . . . . Retrieved Components . | . . . . Parts Scanalyzed . | . . . . Part Schematics Acquired . | . . . . Parts Damaged . | . . . . Bothacking | -11 -10 -10 -10 ------------ Run | Yrd Mat Min Sub Used RIF Installer . | . . . . Robots Hacked . | . . . . Non-combat . | . . . . Combat . | . . . . Robot Hacks Applied . | . . . . Relay Couplers Released . | . . . . Fabnet Peak Effective % . | . . . . Robots Rewired . | . . . . Allies Hacked . | . . . . Hacks Repelled . | . . . . Allies | -11 -10 -10 -10 -------- Run | Yrd Mat Min Sub Total Allies 4 | . . 4 . Largest Group 4 | . . 4 2 Highest-Rated Group 71 | . . 71 24 Highest-Rated Ally 31 | . . 31 16 Total Orders . | . . . . Ally Attacks 53 | . . 40 13 Total Damage 629 | . . 473 156 Kills 7 | . . 7 . Allies Corrupted . | . . . . Allies Melted . | . . . . Intel | -11 -10 -10 -10 ------- Run | Yrd Mat Min Sub Robot Analysis Total . | . . . . Derelict Logs Recovered 2 | . . 1 1 Drone Launches . | . . . . Drone Recoveries . | . . . . Exploration | -11 -10 -10 -10 ------------- Run | Yrd Mat Min Sub Turns Passed 1837 | . 42 1280 515 Spaces Moved 971 | 1 36 670 264 Core . | . . . . Treads 754 | . . 616 138 Legs 91 | 1 36 54 . Wheels 126 | . . . 126 Hover . | . . . . Flight . | . . . . Fastest Speed 95 | 120 120 120 95 Average Speed 149 | 120 120 156 135 Slowest Speed 160 | 120 120 160 160 Overloaded Moves . | . . . . Propulsion Burnouts . | . . . . Robots Hopped . | . . . . Cave-ins Triggered . | . . . . Exploration Rate (%) 31 | 2 9 100 13 Regions Visited 3 Branch Regions 2 Pre-discovered Areas 3 | . . . 3 Known Exits Taken . | . . . . Unknown Exits Taken 3 | 1 1 1 . Scrap Searched 1 | . . 1 . Spaces Dug . | . . . . Terrain Destroyed 13 | . . 13 . Melee . | . . . . Projectile . | . . . . AOE 13 | . . 13 . Terrain Rammed . | . . . . Walls Destroyed . | . . . . Machines Disabled . | . . . . Actions | -11 -10 -10 -10 --------- Run | Yrd Mat Min Sub Total 1240 | . 35 864 341 Wait 173 | . . 167 6 Move 968 | . 35 669 264 Hop . | . . . . Pick Up 6 | . . 2 4 Fast Attach 3 | . . 1 2 Attach 6 | . . 1 5 Detach . | . . . . Swap 4 | . . 2 2 Drop 3 | . . . 3 Fire 76 | . . 21 55 Melee . | . . . . Ram . | . . . . Kick 1 | . . 1 . Crush . | . . . . Escape Stasis . | . . . . Rewire . | . . . . Trap . | . . . . Miscellaneous . | . . . . Route ------- -11/Scrapyard -10/Materials -10/Mines (discovered 3 exits: [*Mat x2] / *Sub) -10/Subcaves (discovered 2 exits: [*Mat] / [*Rec]) History --------- Turn | Location | Event 1 | -11/Scrapyard | Discovered new exit (range 0) 1 | -11/Scrapyard | Entered Materials 33 | -10/Materials | Discovered new exit (range 9) 43 | -10/Materials | Entered Mines 129 | -10/Mines | Found a damaged Exp. Sensor Array with a note attached 131 | -10/Mines | Found Prototype Device 131 | -10/Mines | Identified Exp. Sensor Array 142 | -10/Mines | Discovered new exit (range 10) 204 | -10/Mines | Assisted by bots powering up and referring to "LRC-V3" 318 | -10/Mines | Build established: Mutant 543 | -10/Mines | Learned 2 Materials zone layouts 567 | -10/Mines | Discovered new exit (range 15) 583 | -10/Mines | Received a Mining Laser from a helpful Derelict 846 | -10/Mines | Excavation squad dispatched 846 | -10/Mines | A large section of the Mines collapsed 1310 | -10/Mines | Discovered new exit (range 5) 1323 | -10/Mines | Entered Subcaves 1323 | -10/Subcaves | Accompanied by 2 allies 1333 | -10/Subcaves | Learned location of Zion (-7) 1347 | -10/Subcaves | Discovered new exit (range 10) 1359 | -10/Subcaves | Met a Zionite searching for "candidates" 1383 | -10/Subcaves | Visited Clippyterm 1387 | -10/Subcaves | Learned Factory trap positions 1387 | -10/Subcaves | Learned location of Extension (-6) 1714 | -10/Subcaves | Discovered new exit (range 8) 1747 | -10/Subcaves | Core integrity fell below 50% 1795 | -10/Subcaves | Lost 3 parts (1p1n1w) 1831 | -10/Subcaves | Core integrity fell below 20% 1838 | -10/Subcaves | Destroyed by H1-C4C(R) with Subdweller Beam Cannon Last Messages --------------- 01733_ Acquired Lgt. Assault Rifle. 01735_ Acquired 20 matter. 01736_ Sub. Monowheel destroyed. 01739_ Subatomizers dissect the Flight Unit. 01742_ Flight Unit fries itself beyond repair. 01753_ Subatomizers dissect the Flight Unit. 01755_ Autobeam Turret destroyed. 01764_ Assault Rifle destroyed. 01768_ Subatomizers dissect the Flight Unit. 01789_ Destroyed Autobeam. 01795_ Autobeam Turret destroyed. 01799_ Acquired 21 matter. 01806_ Subatomizers dissect the Flight Unit. 01806_ Lgt. Assault Rifle destroyed. 01818_ Lgt. Ion Engine destroyed. 01824_ Lgt. Assault Rifle destroyed. 01824_ Critical hit (Meltdown: +250). 01830_ Sub. Monowheel destroyed. 01832_ Sub. Power Source destroyed. 01838_ Lgt. Assault Rifle destroyed. Map ----- +----------------------------------------------------+ | ????????????????### ####### #### ## # #??????? | | ?????????????????# #????# #?## ##### #??????? | | ?????????????????# ##????# ### ##?????? | | ?????????????????## ##?#### ## ##????? | | ?????????????????# ### # ## ##???? | | ?????????????????# # ### ### #???? | | ?????????????????## #?# #?## ##??? | | ??????????????????# # # # ##?# ##??## ##?? | | ??????????????????# ####??# ##???## #?? | | ??????????????????# ##????####???## #?? | | ??????????????????##### ##??????????# #?? | | ??????????????????????### ###????????# # #?? | | ????????????????????????### ##???????## ####?? | | ??????????????????????????# ##??????# #???? | | ????????????????????####?## ## ## ##???? | | ???????????????????## ### #?## #???? | | ???????????????????# ### ##?## #???? | | ??????????????# ???# #??# #??# #???? | | ??????????????# ## ##???#### #?# ##???? | | ??????????????# ##########?#?## #???? | | ?????????????# ###" """#????# ###???? | | ????????????# ### = ## "#???? #?????? | | ???????????# ####??###R # "#????####?????? | | ?????????# ????????#; ""##????????????? | | ??????? ?????????# % <#????????????? | | ????? ??????????#@ % ""##????????????? | | ?????# ???????????## # "#?????????????? | | ?????## ?????????????# # "#?????????????? | | ??????## ##??????????????# ##" %"""#?????????????? | | ???????#?????????????????###########?????????????? | | ?????????????????????????????????????????????????? | | ?????????????????????????????????????????????????? | | ?????????????????????????????????????????????????? | | ?????????????????????????????????????????????????? | | ?????????????????????????????????????????????????? | | ?????????????????????????????????????????????????? | | ?????????????????????????????????????????????????? | | ?????????????????????????????????????????????????? | | ?????????????????????????????????????????????????? | | ?????????????????????????????????????????????????? | | ?????????????????????????????????????????????????? | | ?????????????????????????????????????????????????? | | ?????????????????????????????????????????????????? | | ?????????????????????????????????????????????????? | | ?????????????????????????????????????????????????? | | ?????????????????????????????????????????????????? | | ?????????????????????????????????????????????????? | | ?????????????????????????????????????????????????? | | ?????????????????????????????????????????????????? | | ?????????????????????????????????????????????????? | +----------------------------------------------------+ Best States ------------- Heat Dissipation 25 Energy Generation 15 Energy Capacity 250 Matter Stores 300 Matter Capacity 300 Sight Range 21 Robot Scan Range 20 Terrain Scan Density 10 Evasion (%) 55 Recoil Reduction 2 Item Schematics ----------------- None Robot Schematics ------------------ None Fabricated ------------ Nothing Alien Tech Used ----------------- None Achievements -------------- None Challenges ------------ None Game ------ Seed AntimissileVortexNeutralizer Manual? 0 Play Time 00:10:01 Cumulative 113.8 hours Start 2024.11.18 @ 20:22:51 End 2024.11.18 @ 20:29:45 Sessions 1 Manual Loads 0 Difficulty Rogue Special Mode None Game No. 209 Rogue 209 Adventurer 0 Explorer 0 Win Type - Total 0 Types 0/0/0/0/0/0/0/0/0 Lore% 42 Gallery% 40 Achievement% 35 Wizard Run 0 Options --------- Layout 0 ASCII 0 Keyboard 0 Movement Mouse Keybinds 0 Fullscreen 1 Font 24/Smallcaps Map View 91x25 Zoom Use 97% Tactical HUD 1 Map Filters NONE Filters NONE Steam 1 RUN: 6a481493-7fd7-463f-ad65-dd41b46e9495